[Event "SVK-ch Open 2018"]
[Site "Banska Stiavnica"]
[Date "2018.07.10"]
[Round "4"]
[White "Horvath, Julia"]
[Black "Kuna, Martin"]
[Result "1-0"]
[ECO "D15"]
[WhiteElo "2107"]
[BlackElo "1947"]
[Annotator "NA"]
[PlyCount "82"]
[EventDate "2018.07.07"]
[EventType "swiss"]
[EventCountry "SVK"]
[SourceTitle "playchess.com"]
[Source "ChessBase"]
[SourceQuality "1"]
[TimeControl "40/5400+30:1800+30"]

1. d4 d5 {[%emt 0:00:00]} 2. c4 {[%emt 0:00:10]} c6 {[%emt 0:00:21]} 3. Nf3 {[%emt 0:00:58]} Nf6 {[%emt 0:00:35]} 4. Nc3 {[%emt 0:00:07]} a6 {[%emt 0:00:45]} 5. a4 {[%emt 0:01:56]} dxc4 {[%emt 0:01:11]} 6. e4 {[%emt 0:01:33]} e6 {[%emt 0:00:49]} 7. Bxc4 {[%emt 0:03:10]} c5 {[%emt 0:01:42]} 8. e5 {[%emt 0:10:15]} cxd4 {[%emt 0:10:16]} 9. Nxd4 {[%emt 0:01:39]} Nd5 {[%emt 0:02:58]} 10. O-O {[%emt 0:09:11]} Nxc3 {[%emt 0:02:55]} 11. bxc3 {[%emt 0:00:04]} Qc7 {[%emt 0:01:05]} 12. Qe2 {[%emt 0:00:33]} Nd7 {[%emt 0:24:08]} 13. Nf3 {[%emt 0:10:28]} b6 {[%emt 0:10:42]} 14. Bf4 {[%emt 0:11:12]} Bb7 {[%emt 0:02:17]} 15. Nd4 {[%emt 0:07:26]} Nc5 {[%emt 0:03:12]} 16. Rfe1 {[%emt 0:20:19]} Be7 {[%emt 0:03:58]} 17. Qg4 {[%emt 0:03:47]} h5 {[%emt 0:10:22]} 18. Qe2 {[%emt 0:01:46]} g5 {[%emt 0:04:15]} 19. Bc1 {[%emt 0:05:21]} O-O-O {[%emt 0:04:58]} 20. Ba3 {[%emt 0:01:48]} a5 {[%emt 0:01:00]} 21. Bxc5 {[%emt 0:01:26]} Bxc5 {[%emt 0:00:13]} 22. Nb5 {[%emt 0:02:57]} Qb8 {[%emt 0:00:42]} 23. Rad1 {[%emt 0:00:26]} Qa8 {[%emt 0:01:44]} 24. Qf1 {[%emt 0:02:23]} g4 {[%emt 0:02:57]} 25. Nd6+ {[%emt 0:00:11]} Rxd6 {[%emt 0:00:18]} 26. Rxd6 {[%emt 0:01:32]} h4 {[%emt 0:00:07]} 27. Rd4 {[%emt 0:00:59]} Bxd4 {[%emt 0:05:13]} 28. cxd4 {[%emt 0:00:05]} h3 {[%emt 0:00:14]} 29. g3 {[%emt 0:00:16]} Kd8 {[%emt 0:03:06]} 30. d5 {[%emt 0:00:30]} exd5 {[%emt 0:00:31]} 31. Bb5 {[%emt 0:00:29]} Ke7 {[%emt 0:01:27]} 32. Qd3 {[%emt 0:00:23]} Bc6 {[%emt 0:01:06]} 33. Qa3+ {[%emt 0:00:33]} Ke8 {[%emt 0:00:25]} 34. e6 {[%emt 0:01:08]} f5 {[%emt 0:00:51]} 35. Qc3 {[%emt 0:00:09]} Ke7 {[%emt 0:00:32]} 36. Bxc6 {[%emt 0:00:30]} Qc8 {[%emt 0:00:23]} 37. Qa3+ {[%emt 0:01:11]} Kf6 {[%emt 0:00:08]} 38. Qb2+ {[%emt 0:00:28]} Ke7 {[%emt 0:00:08]} 39. Bxd5 {[%emt 0:00:29]} Rd8 {[%emt 0:00:19]} 40. Qg7+ {[%emt 0:00:17]} Kd6 41. e7 {[%emt 0:30:52]} Kxd5 1-0

[Event "SVK-ch Open 2018"]
[Site "Banska Stiavnica"]
[Date "2018.07.10"]
[Round "4"]
[White "Brozyna, Mateusz"]
[Black "Redzisz, Michal"]
[Result "1-0"]
[ECO "B76"]
[WhiteElo "2098"]
[BlackElo "1937"]
[Annotator "NA"]
[PlyCount "113"]
[EventDate "2018.07.07"]
[EventType "swiss"]
[EventCountry "SVK"]
[SourceTitle "playchess.com"]
[Source "ChessBase"]
[SourceQuality "1"]
[TimeControl "40/5400+30:1800+30"]

1. e4 {[%emt 0:00:00]} c5 {[%emt 0:00:00]} 2. Nf3 {[%emt 0:00:00]} d6 {[%emt 0:00:00]} 3. d4 {[%emt 0:00:00]} cxd4 {[%emt 0:00:00]} 4. Nxd4 {[%emt 0:00:00]} Nf6 $11 {[%emt 0:00:00] LiveBook: 94874 Games} 5. Nc3 {[%emt 0:00:00]} g6 {[%emt 0:00:00]} 6. Be3 {[%emt 0:00:06]} Bg7 {[%emt 0:00:00]} 7. f3 {[%emt 0:00:07]} O-O {[%emt 0:00:00]} 8. Qd2 {[%emt 0:00:13]} Nc6 {[%emt 0:00:00]} 9. O-O-O {[%emt 0:00:07]} d5 {[%emt 0:00:02]} 10. Nxc6 {[%emt 0:00:09]} bxc6 {[%emt 0:00:02]} 11. Bh6 {[%emt 0:00:09]} e6 {[%emt 0:02:30]} 12. h4 {[%emt 0:01:02]} Qa5 {[%emt 0:01:40]} 13. Bxg7 {[%emt 0:08:55]} Kxg7 {[%emt 0:00:05]} 14. h5 {[%emt 0:00:32]} Ng8 {[%emt 0:10:20]} 15. Qd4+ {[%emt 0:07:18]} f6 {[%emt 0:02:02]} 16. hxg6 {[%emt 0:00:06]} hxg6 {[%emt 0:05:24]} 17. exd5 {[%emt 0:01:03]} cxd5 {[%emt 0:00:44]} 18. Qh4 {[%emt 0:00:41]} Rf7 {[%emt 0:04:07]} 19. Qh7+ {[%emt 0:05:27]} Kf8 {[%emt 0:00:04]} 20. Qxg6 {[%emt 0:00:09]} Rg7 {[%emt 0:00:13]} 21. Qd3 {[%emt 0:00:28]} Rb8 {[%emt 0:00:43]} 22. Rh4 {[%emt 0:10:00]} Qb6 {[%emt 0:12:46]} 23. Na4 {[%emt 0:09:02]} Qf2 {[%emt 0:00:21]} 24. Qa3+ {[%emt 0:00:47]} Re7 {[%emt 0:02:03]} 25. Rg4 {[%emt 0:01:08]} Rbb7 {[%emt 0:01:36]} 26. Qc5 {[%emt 0:09:05]} Qxc5 {[%emt 0:01:22]} 27. Nxc5 {[%emt 0:00:05]} Rbc7 {[%emt 0:00:16]} 28. b4 {[%emt 0:00:54]} Nh6 {[%emt 0:02:00]} 29. Rg6 {[%emt 0:01:42]} Ng8 {[%emt 0:00:19]} 30. Bd3 {[%emt 0:04:49]} Rg7 {[%emt 0:05:39]} 31. Rxg7 {[%emt 0:05:17]} Rxg7 {[%emt 0:00:06]} 32. g4 {[%emt 0:00:36]} Ne7 {[%emt 0:02:00]} 33. b5 {[%emt 0:08:06]} e5 {[%emt 0:03:22]} 34. Rh1 {[%emt 0:01:32]} Kf7 {[%emt 0:01:16]} 35. Rh8 {[%emt 0:01:37]} Rg8 {[%emt 0:00:36]} 36. Rh6 {[%emt 0:01:02]} e4 {[%emt 0:00:59]} 37. fxe4 {[%emt 0:01:32]} Rxg4 {[%emt 0:00:17]} 38. Rh8 {[%emt 0:02:27]} Kg7 {[%emt 0:02:01]} 39. Re8 {[%emt 0:05:49]} Kf7 {[%emt 0:00:51]} 40. Rd8 {[%emt 0:00:08]} Be6 {[%emt 0:01:10]} 41. Kb2 {[%emt 0:44:23]} dxe4 {[%emt 0:30:59]} 42. Nxe4 {[%emt 0:00:26]} f5 {[%emt 0:00:21]} 43. Nc5 {[%emt 0:00:53]} Bc4 {[%emt 0:01:03]} 44. Bxc4+ {[%emt 0:00:00]} Rxc4 {[%emt 0:00:00]} 45. Nd3 {[%emt 0:00:00]} Ke6 {[%emt 0:00:00]} 46. Kb3 {[%emt 0:00:00]} Rg4 {[%emt 0:00:00]} 47. Ra8 {[%emt 0:00:00]} f4 {[%emt 0:00:00]} 48. Rxa7 {[%emt 0:00:00]} f3 {[%emt 0:00:00]} 49. Ra6+ {[%emt 0:00:00]} Kd5 {[%emt 0:00:00]} 50. Rf6 {[%emt 0:00:00]} Rg3 {[%emt 0:00:00]} 51. a4 {[%emt 0:00:00]} Nc8 {[%emt 0:00:00]} 52. Kb4 {[%emt 0:00:00]} Nd6 {[%emt 0:00:00]} 53. Nf2 {[%emt 0:00:00]} Nb7 {[%emt 0:00:00]} 54. a5 {[%emt 0:00:00]} Rg1 {[%emt 0:00:00]} 55. Rxf3 {[%emt 0:00:00]} Rb1+ {[%emt 0:00:00]} 56. Rb3 {[%emt 0:00:00]} Rc1 {[%emt 0:00:00]} 57. Rd3+ {[%emt 0:00:00]} 1-0

[Event "SVK-ch Open 2018"]
[Site "Banska Stiavnica"]
[Date "2018.07.10"]
[Round "4"]
[White "Kerdik, Adam"]
[Black "Hyll, Jan"]
[Result "1-0"]
[ECO "D35"]
[WhiteElo "2091"]
[BlackElo "1915"]
[Annotator "NA"]
[PlyCount "45"]
[EventDate "2018.07.07"]
[EventType "swiss"]
[EventCountry "SVK"]
[SourceTitle "playchess.com"]
[Source "ChessBase"]
[SourceQuality "1"]
[TimeControl "40/5400+30:1800+30"]

1. d4 {[%emt 0:00:00]} d5 {[%emt 0:00:14]} 2. c4 {[%emt 0:00:00]} e6 {[%emt 0:00:11]} 3. Nc3 {[%emt 0:00:09]} Nf6 {[%emt 0:00:20]} 4. cxd5 {[%emt 0:00:09]} exd5 {[%emt 0:00:05]} 5. Bg5 {[%emt 0:00:06]} Be7 {[%emt 0:00:21]} 6. e3 {[%emt 0:00:10]} c6 {[%emt 0:00:35]} 7. Bd3 {[%emt 0:00:08]} O-O {[%emt 0:00:21]} 8. Nge2 {[%emt 0:00:13]} Ne4 {[%emt 0:01:32]} 9. Bxe7 {[%emt 0:04:54]} Qxe7 {[%emt 0:00:02]} 10. Qc2 {[%emt 0:12:18]} f5 {[%emt 0:02:02]} 11. Nf4 {[%emt 0:01:28]} Nxc3 {[%emt 0:06:18]} 12. bxc3 {[%emt 0:09:15]} Be6 {[%emt 0:03:33]} 13. Rb1 {[%emt 0:04:43]} b6 {[%emt 0:00:39]} 14. g4 {[%emt 0:08:54]} g6 {[%emt 0:03:17]} 15. Nxe6 {[%emt 0:04:36]} Qxe6 {[%emt 0:00:01]} 16. gxf5 {[%emt 0:00:06]} gxf5 {[%emt 0:00:49]} 17. Rg1+ {[%emt 0:00:05]} Kh8 {[%emt 0:00:31]} 18. Rg5 {[%emt 0:05:17]} f4 {[%emt 0:02:30]} 19. Bf5 {[%emt 0:16:16]} Qh6 {[%emt 0:01:25]} 20. exf4 {[%emt 0:01:57]} Qxh2 {[%emt 0:00:54]} 21. Qe2 {[%emt 0:02:12]} Qh6 {[%emt 0:03:56]} 22. Rh5 {[%emt 0:03:30]} Qxh5 {[%emt 0:02:14]} 23. Qxh5 {[%emt 0:00:08]} 1-0

[Event "SVK-ch Open 2018"]
[Site "Banska Stiavnica"]
[Date "2018.07.10"]
[Round "4"]
[White "Pniaczek, Marek"]
[Black "Gelle, Istvan"]
[Result "1/2-1/2"]
[ECO "B18"]
[WhiteElo "2082"]
[BlackElo "2344"]
[Annotator "NA"]
[PlyCount "118"]
[EventDate "2018.07.07"]
[EventType "swiss"]
[EventCountry "SVK"]
[SourceTitle "playchess.com"]
[Source "ChessBase"]
[SourceQuality "1"]
[TimeControl "40/5400+30:1800+30"]

1. e4 {[%emt 0:00:00]} c6 {[%emt 0:00:00]} 2. d4 {[%emt 0:00:00]} d5 {[%emt 0:00:00]} 3. Nc3 {[%emt 0:00:00]} dxe4 {[%emt 0:00:00]} 4. Nxe4 {[%emt 0:00:00]} Bf5 {[%emt 0:00:03]} 5. Ng3 {[%emt 0:00:00]} Bg6 {[%emt 0:00:11]} 6. Nh3 $11 {[%emt 0:00:00] LiveBook: 776 Games} e6 {[%emt 0:04:32]} 7. Nf4 {[%emt 0:00:08]} Bd6 {[%emt 0:02:20]} 8. Nfh5 {[%emt 0:00:24]} Kf8 {[%emt 0:06:25]} 9. Be2 {[%emt 0:03:09]} Qh4 {[%emt 0:09:37]} 10. Be3 {[%emt 0:07:19]} Nf6 {[%emt 0:03:32]} 11. Nxf6 {[%emt 0:05:26]} gxf6 {[%emt 0:00:08]} 12. Nh5 {[%emt 0:11:01]} Nd7 {[%emt 0:04:38]} 13. Bf3 {[%emt 0:03:57]} Bxh5 {[%emt 0:24:25]} 14. Bxh5 {[%emt 0:00:05]} f5 {[%emt 0:00:37]} 15. Bf3 {[%emt 0:07:37]} Rg8 {[%emt 0:07:32]} 16. g3 {[%emt 0:02:15]} Qf6 {[%emt 0:02:46]} 17. Qd2 {[%emt 0:04:46]} Nb6 {[%emt 0:01:09]} 18. Bf4 {[%emt 0:05:49]} Rd8 {[%emt 0:01:14]} 19. O-O-O {[%emt 0:01:28]} Bxf4 {[%emt 0:04:56]} 20. Qxf4 {[%emt 0:00:07]} Qg5 {[%emt 0:01:46]} 21. Qxg5 {[%emt 0:00:35]} Rxg5 {[%emt 0:00:07]} 22. b3 {[%emt 0:02:50]} Ke7 {[%emt 0:03:08]} 23. c4 {[%emt 0:02:33]} Rgg8 {[%emt 0:00:54]} 24. a4 {[%emt 0:02:26]} a5 {[%emt 0:01:08]} 25. Rhe1 {[%emt 0:01:16]} Kf6 {[%emt 0:00:34]} 26. Re5 {[%emt 0:12:51]} Rxd4 {[%emt 0:06:11]} 27. Rxf5+ {[%emt 0:01:19]} Kxf5 {[%emt 0:02:47]} 28. Rxd4 {[%emt 0:00:12]} Ke5 {[%emt 0:01:13]} 29. Re4+ {[%emt 0:05:40]} Kd6 {[%emt 0:00:36]} 30. Rh4 {[%emt 0:01:03]} Rg7 {[%emt 0:00:50]} 31. Kd2 {[%emt 0:08:45]} f5 {[%emt 0:04:21]} 32. g4 {[%emt 0:02:19]} fxg4 {[%emt 0:01:15]} 33. Bxg4 {[%emt 0:00:15]} Nd7 {[%emt 0:00:31]} 34. Bh3 {[%emt 0:02:54]} Rf7 {[%emt 0:01:20]} 35. Ke3 {[%emt 0:02:49]} Nc5 {[%emt 0:01:22]} 36. Rh6 {[%emt 0:01:10]} Re7 {[%emt 0:01:34]} 37. f4 {[%emt 0:00:23]} Nxb3 {[%emt 0:01:03]} 38. f5 {[%emt 0:00:27]} Nc5 {[%emt 0:00:31]} 39. fxe6 {[%emt 0:00:45]} Nxa4 {[%emt 0:01:03]} 40. Bf5 {[%emt 0:03:44]} Nc5 {[%emt 0:00:51]} 41. Bxh7 {[%emt 0:31:27]} Rxe6+ {[%emt 0:31:06]} 42. Rxe6+ {[%emt 0:00:07]} Kxe6 {[%emt 0:01:54]} 43. Kd4 {[%emt 0:00:00]} b6 {[%emt 0:00:00]} 44. Bc2 {[%emt 0:00:00]} Nb7 {[%emt 0:00:00]} 45. Be4 {[%emt 0:00:00]} Nd8 {[%emt 0:00:00]} 46. Bc2 {[%emt 0:00:00]} Nf7 {[%emt 0:00:00]} 47. h4 {[%emt 0:00:00]} Nh6 {[%emt 0:00:00]} 48. Be4 {[%emt 0:00:00]} Nf5+ {[%emt 0:00:00]} 49. Kc3 Ne7 {[%emt 0:00:49]} 50. h5 {[%emt 0:00:30]} Kf6 {[%emt 0:00:42]} 51. h6 {[%emt 0:01:21]} b5 {[%emt 0:00:33]} 52. cxb5 {[%emt 0:00:48]} cxb5 {[%emt 0:00:05]} 53. Bd3 {[%emt 0:01:29]} Nd5+ {[%emt 0:01:51]} 54. Kd4 {[%emt 0:00:09]} Nc7 {[%emt 0:00:57]} 55. Kc5 {[%emt 0:00:59]} b4 {[%emt 0:00:56]} 56. Bc2 {[%emt 0:00:56]} Ne6+ {[%emt 0:00:31]} 57. Kb5 {[%emt 0:00:40]} Nd4+ {[%emt 0:00:11]} 58. Kxa5 {[%emt 0:00:02]} Nxc2 {[%emt 0:00:49]} 59. Ka4 {[%emt 0:00:03]} Ke5 1/2-1/2

[Event "SVK-ch Open 2018"]
[Site "Banska Stiavnica"]
[Date "2018.07.10"]
[Round "4"]
[White "Sosovicka, Jakub"]
[Black "Jozefek, Michal"]
[Result "0-1"]
[ECO "B90"]
[WhiteElo "2078"]
[BlackElo "2182"]
[Annotator "NA"]
[PlyCount "74"]
[EventDate "2018.07.07"]
[EventType "swiss"]
[EventCountry "SVK"]
[SourceTitle "playchess.com"]
[Source "ChessBase"]
[SourceQuality "1"]
[TimeControl "40/5400+30:1800+30"]

1. e4 {[%emt 0:00:00]} c5 {[%emt 0:00:00]} 2. Nf3 {[%emt 0:00:00]} d6 {[%emt 0:00:00]} 3. d4 {[%emt 0:00:00]} cxd4 {[%emt 0:00:00]} 4. Nxd4 {[%emt 0:00:00]} Nf6 {[%emt 0:00:02]} 5. Nc3 {[%emt 0:00:00]} a6 {[%emt 0:00:13]} 6. Nb3 {[%emt 0:00:19]} b5 {[%emt 0:02:15]} 7. Be3 {[%emt 0:07:26]} e6 {[%emt 0:03:45]} 8. f3 {[%emt 0:13:50]} Be7 {[%emt 0:02:22]} 9. Qd2 {[%emt 0:01:17]} Bb7 {[%emt 0:03:15]} 10. O-O-O {[%emt 0:02:33]} Nbd7 {[%emt 0:06:22]} 11. g4 {[%emt 0:07:08]} h6 {[%emt 0:03:29]} 12. Qf2 {[%emt 0:03:06]} Rc8 {[%emt 0:04:06]} 13. h4 {[%emt 0:02:30]} Rxc3 {[%emt 0:03:18]} 14. bxc3 {[%emt 0:00:08]} Qc7 {[%emt 0:02:17]} 15. Bd3 {[%emt 0:24:52]} d5 {[%emt 0:04:01]} 16. g5 {[%emt 0:02:39]} Nh5 {[%emt 0:02:17]} 17. Rhg1 {[%emt 0:12:13]} hxg5 {[%emt 0:18:55]} 18. hxg5 {[%emt 0:00:51]} Qxc3 {[%emt 0:00:12]} 19. Bd4 {[%emt 0:01:21]} Qc7 {[%emt 0:00:13]} 20. g6 {[%emt 0:03:36]} e5 {[%emt 0:06:02]} 21. gxf7+ {[%emt 0:00:32]} Kxf7 {[%emt 0:00:06]} 22. Bb2 {[%emt 0:01:40]} d4 {[%emt 0:00:46]} 23. Qg2 {[%emt 0:01:40]} g5 {[%emt 0:08:06]} 24. Qg4 {[%emt 0:02:03]} Bc8 {[%emt 0:04:12]} 25. Qf5+ {[%emt 0:01:20]} Bf6 {[%emt 0:01:46]} 26. Qh3 {[%emt 0:07:27]} Nb6 {[%emt 0:03:16]} 27. Qf1 {[%emt 0:01:00]} Nc4 {[%emt 0:00:08]} 28. Bxc4+ {[%emt 0:03:26]} bxc4 {[%emt 0:00:04]} 29. Na1 {[%emt 0:00:52]} Nf4 {[%emt 0:01:04]} 30. Rh1 {[%emt 0:00:35]} Rh3 {[%emt 0:03:22]} 31. Rxh3 {[%emt 0:00:29]} Bxh3 {[%emt 0:00:02]} 32. Qe1 {[%emt 0:00:23]} c3 {[%emt 0:00:21]} 33. Nb3 {[%emt 0:00:37]} cxb2+ {[%emt 0:00:15]} 34. Kxb2 {[%emt 0:00:02]} Bg2 {[%emt 0:00:48]} 35. Qb4 {[%emt 0:00:54]} Bxf3 {[%emt 0:01:00]} 36. Nc5 {[%emt 0:00:26]} Bxd1 {[%emt 0:01:03]} 37. Qc4+ {[%emt 0:00:06]} Kg7 {[%emt 0:00:10]} 0-1

[Event "SVK-ch Open 2018"]
[Site "Banska Stiavnica"]
[Date "2018.07.10"]
[Round "4"]
[White "Volcko, Richard"]
[Black "Stockova, Zuzana"]
[Result "0-1"]
[ECO "B30"]
[WhiteElo "2068"]
[BlackElo "2301"]
[Annotator "NA"]
[PlyCount "56"]
[EventDate "2018.07.07"]
[EventType "swiss"]
[EventCountry "SVK"]
[SourceTitle "playchess.com"]
[Source "ChessBase"]
[SourceQuality "1"]
[TimeControl "40/5400+30:1800+30"]

1. e4 {[%emt 0:00:00]} c5 {[%emt 0:00:00]} 2. Nf3 {[%emt 0:00:30]} Nc6 {[%emt 0:00:30]} 3. d3 {[%emt 0:00:30]} e6 {[%emt 0:01:53]} 4. Nbd2 {[%emt 0:00:21]} d6 {[%emt 0:02:33]} 5. g3 {[%emt 0:00:52]} g6 {[%emt 0:00:14]} 6. Bg2 {[%emt 0:00:39]} Bg7 {[%emt 0:00:15]} 7. O-O {[%emt 0:01:18] LiveBook: 40 Games} Nge7 {[%emt 0:00:19]} 8. c3 {[%emt 0:01:22]} b5 {[%emt 0:01:08]} 9. Re1 $11 {[%emt 0:04:19]} Rb8 {[%emt 0:13:05]} 10. Nf1 {[%emt 0:03:20]} b4 {[%emt 0:13:13]} 11. d4 {[%emt 0:00:52]} bxc3 {[%emt 0:01:06]} 12. bxc3 cxd4 {[%emt 0:04:25]} 13. cxd4 {[%emt 0:00:31]} O-O {[%emt 0:00:17]} 14. Be3 {[%emt 0:12:48]} d5 {[%emt 0:04:16]} 15. e5 {[%emt 0:04:39]} Nf5 {[%emt 0:05:00]} 16. h4 {[%emt 0:10:26]} f6 {[%emt 0:03:19]} 17. Bf4 {[%emt 0:05:43]} fxe5 {[%emt 0:03:44]} 18. dxe5 {[%emt 0:08:12]} Rb4 {[%emt 0:06:40]} 19. Qd2 {[%emt 0:03:33]} Qb6 {[%emt 0:11:34]} 20. Rac1 {[%emt 0:05:58]} Bd7 {[%emt 0:01:28]} 21. Ne3 {[%emt 0:08:03]} Ncd4 {[%emt 0:02:18]} 22. Nxf5 {[%emt 0:06:30]} Nxf5 {[%emt 0:01:10]} 23. Bh3 {[%emt 0:09:44]} Nxg3 {[%emt 0:05:55]} 24. Be3 {[%emt 0:02:05]} Ne4 {[%emt 0:00:50]} 25. Qe2 {[%emt 0:04:30]} Qb8 {[%emt 0:01:54]} 26. Bc5 {[%emt 0:05:16]} Nxc5 {[%emt 0:00:33]} 27. Rxc5 {[%emt 0:00:13]} Re4 {[%emt 0:01:12]} 28. Qd3 {[%emt 0:01:02]} Rxf3 {[%emt 0:01:14]} 0-1

[Event "SVK-ch Open 2018"]
[Site "Banska Stiavnica"]
[Date "2018.07.10"]
[Round "4"]
[White "Ferkova, Dominika"]
[Black "Druska, Juraj"]
[Result "0-1"]
[ECO "E24"]
[WhiteElo "2053"]
[BlackElo "2439"]
[Annotator "NA"]
[PlyCount "110"]
[EventDate "2018.07.07"]
[EventType "swiss"]
[EventCountry "SVK"]
[SourceTitle "playchess.com"]
[Source "ChessBase"]
[SourceQuality "1"]
[TimeControl "40/5400+30:1800+30"]

1. d4 {[%emt 0:00:00]} Nf6 {[%emt 0:01:25]} 2. c4 {[%emt 0:00:00]} e6 {[%emt 0:00:28]} 3. Nc3 {[%emt 0:00:00]} Bb4 {[%emt 0:00:12]} 4. a3 {[%emt 0:00:00]} Bxc3+ {[%emt 0:00:19]} 5. bxc3 {[%emt 0:00:00]} b6 {[%emt 0:00:17]} 6. e3 {[%emt 0:00:48]} Bb7 {[%emt 0:00:33]} 7. f3 {[%emt 0:00:23]} Nc6 {[%emt 0:00:25]} 8. Bd3 {[%emt 0:00:37]} Na5 {[%emt 0:02:09]} 9. e4 {[%emt 0:08:05]} Ba6 {[%emt 0:00:07]} 10. Qe2 $11 {[%emt 0:01:51]} c5 {[%emt 0:00:12]} 11. d5 {[%emt 0:18:26]} d6 {[%emt 0:01:33]} 12. Nh3 {[%emt 0:03:06]} Nd7 {[%emt 0:07:41]} 13. Bg5 {[%emt 0:09:33]} f6 {[%emt 0:08:27]} 14. Bf4 {[%emt 0:05:44]} Qe7 {[%emt 0:00:09]} 15. Bg3 {[%emt 0:02:42]} exd5 {[%emt 0:14:23]} 16. cxd5 {[%emt 0:06:58]} Bxd3 {[%emt 0:00:10]} 17. Qxd3 {[%emt 0:00:04]} c4 {[%emt 0:00:17]} 18. Qe2 {[%emt 0:07:29]} O-O {[%emt 0:03:39]} 19. O-O {[%emt 0:03:14]} Nc5 {[%emt 0:00:19]} 20. Nf4 {[%emt 0:03:47]} Rae8 {[%emt 0:18:29]} 21. Bf2 {[%emt 0:06:53]} Nab3 {[%emt 0:13:51]} 22. Ra2 {[%emt 0:02:39]} f5 {[%emt 0:11:00]} 23. Qxc4 {[%emt 0:07:59]} fxe4 {[%emt 0:00:10]} 24. Ne6 {[%emt 0:03:51]} Nxe6 {[%emt 0:01:01]} 25. dxe6 {[%emt 0:00:25]} Qxe6 {[%emt 0:00:35]} 26. Qxe6+ {[%emt 0:00:33]} Rxe6 {[%emt 0:00:02]} 27. Re2 {[%emt 0:00:54]} Rfe8 {[%emt 0:00:39]} 28. Rfe1 {[%emt 0:01:57]} d5 {[%emt 0:01:27]} 29. fxe4 {[%emt 0:01:11]} Rxe4 {[%emt 0:02:03]} 30. Rxe4 {[%emt 0:00:39]} Rxe4 {[%emt 0:00:02]} 31. Rb1 {[%emt 0:02:41]} Nd2 {[%emt 0:04:34]} 32. Rd1 {[%emt 0:02:45]} Re2 {[%emt 0:00:02]} 33. Be1 {[%emt 0:00:39]} Nc4 {[%emt 0:00:17]} 34. Bf2 {[%emt 0:00:03]} Rd2 {[%emt 0:04:08]} 35. Ra1 {[%emt 0:00:49]} Nd6 {[%emt 0:00:40]} 36. Be1 {[%emt 0:00:30]} Rd3 {[%emt 0:04:12]} 37. Kf2 {[%emt 0:00:35]} Nc4 {[%emt 0:00:03]} 38. a4 {[%emt 0:00:30]} Kf7 {[%emt 0:01:12]} 39. Ra2 {[%emt 0:00:29]} Rd1 {[%emt 0:00:18]} 40. Ke2 {[%emt 0:00:13]} Rb1 {[%emt 0:01:18]} 41. a5 {[%emt 0:06:04]} bxa5 {[%emt 0:08:11]} 42. Ra4 {[%emt 0:00:32]} Ke6 {[%emt 0:04:34]} 43. Bg3 {[%emt 0:02:03]} Rc1 {[%emt 0:04:44]} 44. Be1 {[%emt 0:02:22]} Ke5 {[%emt 0:00:47]} 45. Ra2 {[%emt 0:01:18]} Ke4 {[%emt 0:02:03]} 46. h3 {[%emt 0:05:25]} a6 {[%emt 0:03:13]} 47. Bd2 {[%emt 0:01:10]} Rg1 {[%emt 0:01:26]} 48. Kf2 {[%emt 0:00:28]} Rb1 {[%emt 0:00:07]} 49. Ke2 {[%emt 0:01:08]} Rb2 {[%emt 0:00:51]} 50. Rxb2 {[%emt 0:00:16]} Nxb2 {[%emt 0:00:03]} 51. Be1 {[%emt 0:00:08]} Nc4 {[%emt 0:00:52]} 52. Kd1 {[%emt 0:00:07]} Kd3 {[%emt 0:03:28]} 53. Kc1 {[%emt 0:00:20]} a4 {[%emt 0:00:09]} 54. Kb1 {[%emt 0:00:19]} Ke2 {[%emt 0:00:15]} 55. Bh4 {[%emt 0:00:11]} Kd2 {[%emt 0:00:34]} 0-1

[Event "SVK-ch Open 2018"]
[Site "Banska Stiavnica"]
[Date "2018.07.10"]
[Round "4"]
[White "Tepper, Frantisek"]
[Black "Slaba, Andrea"]
[Result "1/2-1/2"]
[ECO "B06"]
[WhiteElo "2050"]
[BlackElo "1936"]
[Annotator "NA"]
[PlyCount "50"]
[EventDate "2018.07.07"]
[EventType "swiss"]
[EventCountry "SVK"]
[SourceTitle "playchess.com"]
[Source "ChessBase"]
[SourceQuality "1"]
[TimeControl "40/5400+30:1800+30"]

1. e4 {[%emt 0:00:00]} g6 {[%emt 0:00:00]} 2. d4 {[%emt 0:00:08]} Bg7 {[%emt 0:00:00]} 3. Nc3 {[%emt 0:00:57]} d6 {[%emt 0:00:09]} 4. Be3 {[%emt 0:04:28]} c6 {[%emt 0:01:24]} 5. Qd2 {[%emt 0:01:07]} b5 {[%emt 0:00:59]} 6. a3 {[%emt 0:00:14]} a6 {[%emt 0:00:34]} 7. f4 {[%emt 0:02:06]} Bb7 {[%emt 0:02:20]} 8. Nf3 {[%emt 0:04:17]} e6 {[%emt 0:01:59]} 9. Bd3 {[%emt 0:03:05]} Nd7 {[%emt 0:02:06]} 10. Ne2 {[%emt 0:00:17]} c5 {[%emt 0:01:14]} 11. c3 {[%emt 0:00:07]} Ngf6 {[%emt 0:03:10]} 12. Ng3 {[%emt 0:01:17]} cxd4 {[%emt 0:01:20]} 13. cxd4 {[%emt 0:02:31]} d5 {[%emt 0:01:49]} 14. e5 {[%emt 0:00:36]} Ne4 {[%emt 0:00:55]} 15. Bxe4 {[%emt 0:00:23]} dxe4 {[%emt 0:00:04]} 16. Ng5 {[%emt 0:00:09]} Nb6 {[%emt 0:04:46]} 17. N5xe4 {[%emt 0:08:17]} Nc4 {[%emt 0:00:14]} 18. Qe2 {[%emt 0:00:09]} O-O {[%emt 0:02:15]} 19. O-O {[%emt 0:00:58]} h5 {[%emt 0:01:03]} 20. b3 {[%emt 0:02:49]} Nxe3 21. Qxe3 h4 22. Ne2 Qd5 23. N2c3 Qd8 24. Ne2 Qd5 25. N2c3 Qxb3 1/2-1/2

[Event "SVK-ch Open 2018"]
[Site "Banska Stiavnica"]
[Date "2018.07.10"]
[Round "4"]
[White "Panko, Radoslav"]
[Black "Seres, Bela"]
[Result "1-0"]
[ECO "B23"]
[WhiteElo "2049"]
[BlackElo "2212"]
[Annotator "NA"]
[PlyCount "63"]
[EventDate "2018.07.07"]
[EventType "swiss"]
[EventCountry "SVK"]
[SourceTitle "playchess.com"]
[Source "ChessBase"]
[SourceQuality "1"]
[TimeControl "40/5400+30:1800+30"]

1. e4 {[%emt 0:00:00]} c5 {[%emt 0:01:39]} 2. Nc3 {[%emt 0:00:00]} g6 {[%emt 0:00:14]} 3. h4 {[%emt 0:00:00]} Nc6 {[%emt 0:01:01]} 4. h5 {[%emt 0:00:10]} Bg7 {[%emt 0:00:02]} 5. d3 {[%emt 0:01:02]} d6 {[%emt 0:03:06]} 6. Nge2 {[%emt 0:00:59]} e6 {[%emt 0:02:31]} 7. Be3 {[%emt 0:01:06]} Nd4 {[%emt 0:02:47]} 8. Qd2 {[%emt 0:05:31]} Ne7 {[%emt 0:05:13]} 9. h6 {[%emt 0:00:33]} Bf6 {[%emt 0:00:11]} 10. Bxd4 {[%emt 0:00:46]} cxd4 {[%emt 0:00:10]} 11. Nd1 {[%emt 0:00:13]} Nc6 {[%emt 0:08:42]} 12. c4 {[%emt 0:01:20]} O-O {[%emt 0:02:48]} 13. g3 {[%emt 0:04:09]} Rb8 {[%emt 0:07:05]} 14. f4 {[%emt 0:02:38]} b5 {[%emt 0:01:50]} 15. Rc1 {[%emt 0:03:38]} bxc4 {[%emt 0:02:24]} 16. Rxc4 {[%emt 0:00:03]} Qb6 {[%emt 0:00:28]} 17. Bg2 {[%emt 0:01:59]} d5 {[%emt 0:06:10]} 18. exd5 {[%emt 0:14:15]} exd5 {[%emt 0:00:37]} 19. Bxd5 {[%emt 0:00:12]} Nb4 {[%emt 0:00:43]} 20. Be4 {[%emt 0:04:50]} Ba6 {[%emt 0:00:17]} 21. Rc1 {[%emt 0:01:26]} Qb5 {[%emt 0:03:19]} 22. Nf2 {[%emt 0:04:50]} Nxa2 {[%emt 0:02:40]} 23. Ra1 {[%emt 0:03:27]} Qxb2 {[%emt 0:02:04]} 24. Rxa2 {[%emt 0:00:36]} Qb1+ {[%emt 0:00:33]} 25. Nd1 {[%emt 0:00:17]} Be7 {[%emt 0:01:24]} 26. O-O {[%emt 0:07:45]} Qb6 {[%emt 0:03:04]} 27. Qa5 {[%emt 0:04:07]} Bb7 {[%emt 0:03:53]} 28. Qxb6 {[%emt 0:00:57]} axb6 {[%emt 0:00:09]} 29. Nf2 {[%emt 0:00:50]} f5 {[%emt 0:01:01]} 30. Bxb7 {[%emt 0:00:10]} Rxb7 {[%emt 0:00:02]} 31. Nxd4 {[%emt 0:00:28]} Rd8 {[%emt 0:00:17]} 32. Nc6 {[%emt 0:00:14]} 1-0